Cogmind - Beta 17 @@@ ROGUE MODE // 2026.06.23 @ 20:00:41 Player: Scottariah Result: Destroyed by 9B-F18(R) with Subdweller Laser Performance ------------- Evolutions (0) 0 Regions Visited (2) 400 Robots Destroyed (33) 165 Value Destroyed (664) 664 Prototype IDs (0) 0 Alien Tech Used (0) 0 Bonus (0) 0 TOTAL SCORE: 1229 Bonus ------- None Cogmind --------- Core Integrity 0/250 Matter 2/300 Energy 125/125 System Corruption 2% Temperature Cool (6) Movement Walking (260) Ox2 Location -10/Subcaves Parts ------- > --- POWER (1) -------- Light Ion Engine > --- PROPULSION (2) --- Light Treads Aluminum Leg > --- UTILITY (2) ------ Large Storage Unit Seismic Detector > --- WEAPON (2) ------- Light Cannon > --- INVENTORY (15) --- Ion Engine Light Ion Engine Subdweller Monowheel Heat Sink Medium Matter Pod (100) Terrain Scanner Subdweller Machine Gun Light Cannon Light Cannon Mining Laser Mining Laser Peak State ------------ > --- POWER ------------ Ion Engine > --- PROPULSION ------- Light Treads Light Treads > --- UTILITY ---------- Small Storage Unit Seismic Detector > --- WEAPON ----------- Assault Rifle Light Assault Rifle > --- INVENTORY -------- Light Ion Engine Aluminum Leg Aluminum Leg Medium Matter Pod Improved Terrain Scanner EM Pulse Gun Light Assault Rifle Mining Laser [Rating: 8] Favorites ----------- Power Ion Engine Engine Ion Engine Propulsion Light Treads Treads Light Treads Leg Aluminum Leg Utility Seismic Detector Device Seismic Detector Storage Large Storage Unit Weapon Light Cannon Ballistic Gun Light Assault Rifle Ballistic Cannon Light Cannon Special Weapon Mining Laser Build | -11 -10 -10 ------- Run | Yrd Mat Sub Slots Evolved . | . . . Power . | . . . Propulsion . | . . . Utility . | . . . Weapon . | . . . Parts Attached 26 | 7 12 7 Power 4 | 1 2 1 Engine 4 | 1 2 1 Core . | . . . Reactor . | . . . Propulsion 7 | 2 2 3 Treads 5 | 2 2 1 Leg 2 | . . 2 Wheel . | . . . Hover . | . . . Flight . | . . . Utility 4 | 2 2 . Device 1 | 1 . . Storage 3 | 1 2 . Processor . | . . . Hackware . | . . . Protection . | . . . Artifact . | . . . Weapon 11 | 2 6 3 Energy Gun . | . . . Energy Cannon . | . . . Ballistic Gun 4 | 2 2 . Ballistic Cannon 5 | . 2 3 Launcher . | . . . Special Weapon 2 | . 2 . Impact Weapon . | . . . Slashing Weapon . | . . . Piercing Weapon . | . . . Special Melee Weapon . | . . . Unidentified Prototypes . | . . . Parts Lost 6 | . . 6 Power 1 | . . 1 Propulsion 3 | . . 3 Utility . | . . . Weapon 2 | . . 2 Highest Loss Streak 3 | . . 3 To Critical Strikes . | . . . Average Backups 11 | 3 11 13 Power 1 | . 2 2 Propulsion 2 | 1 2 2 Utility 2 | . 2 3 Weapon 4 | . 5 5 Tool/Special . | . . . Unused Backups 13 | . 5 8 Power . | . . . Propulsion 3 | . 2 1 Utility 4 | . 1 3 Weapon 6 | . 2 4 Tool/Special . | . . . Average Slot Usage (%) 99 | . 100 98 Engine 13 | . 14 13 Treads 27 | . 28 24 Device 14 | . 14 14 Storage 14 | . 14 14 Ballistic Gun 7 | . 8 . Ballistic Cannon 20 | . 19 27 Peak Build Rating 8 | 7 8 8 Average Rating 7 | 5 7 7 On Entrance 5 | . 7 8 Avg Prop Armor Cover (%) 9 | . . 9 Naked Turns . | . . . Heaviest Build 32 | 13 32 32 Greatest Support 40 | 40 40 40 Greatest Overweight (x) 2 | 1 . 2 Average Overweight (x) . | . . . Largest Inventory Capacity 15 | 8 15 15 Average Capacity 12 | 7 12 15 Most Carried 15 | 7 15 15 Average Carried 11 | 3 11 13 Final Capacity 15 | 8 15 15 Final Carried 15 | 7 15 11 Class Distribution -------------------- 60% | Mutant 39% | Scavenger-Mutant Dominant Class ---------------- Mutant | -10/Materials Mutant | -10/Subcaves Resources | -11 -10 -10 ----------- Run | Yrd Mat Sub Matter Collected 848 | 380 359 109 Remotely . | . . . Salvage Created 820 | 203 517 100 Parts 59 | 15 35 9 Haulers Intercepted 2 | . 2 . Recyclers Shooed . | . . . Parts Field Recycled . | . . . Retrieved Matter . | . . . Parts Self-Destructed 5 | . . 5 Prevented . | . . . Parts Restored . | . . . Kills | -11 -10 -10 ------- Run | Yrd Mat Sub Combat Hostiles Destroyed 22 | . 16 6 Melee 1 | . 1 . Guns 8 | . 8 . Cannons 13 | . 7 6 Classes Destroyed 8 | 3 4 1 Worker 2 | 2 . . Tunneler 3 | 3 . . Hauler 2 | . 2 . Recycler 2 | 1 1 . Operator 2 | . 2 . Swarmer 8 | . 6 2 Grunt 10 | . 10 . Subdweller 4 | . . 4 Best Kill Streak 4 | 4 3 3 Combat Bots Only 3 | . 3 3 Max Kills in Single Turn 1 | 1 1 1 Gunslinging . | . . . Exploded . | . . . Melee 1 | . 1 . Uniques/NPCs Destroyed . | . . . Combat | -11 -10 -10 -------- Run | Yrd Mat Sub Hostile Shots Fired 150 | . 81 69 Missed 40 | . 19 21 Hits 110 | . 62 48 Projectile 110 | . 62 48 Critical Strikes 2 | . . 2 Damage Taken 1593 | . 633 960 Core 258 | . 107 151 Absorbed by Shields . | . . . Core Remaining (%) 100 | 100 . . Volleys Fired 102 | 17 55 30 Largest 2 | 2 2 2 Hottest 130 | 40 130 60 Shots Fired 200 | 34 110 56 Gun 94 | 34 60 . Cannon 104 | . 48 56 Launcher . | . . . Special 2 | . 2 . Kinetic 198 | 34 108 56 Thermal 2 | . 2 . Explosive . | . . . Electromagnetic . | . . . Robot Hit Streak 20 | 4 11 20 Robot Miss Streak 6 | 6 2 3 Penetration Max . | . . . Secondary Targets . | . . . Shots Hit Robots 132 | 17 77 38 Core Hits 47 | 13 24 10 Critical Kills 1 | . 1 . Critical Parts Destroyed . | . . . Critical Strikes 2 | . 2 . Destroy 1 | . 1 . Blast 1 | . 1 . Melee Attacks . | . . . Impact . | . . . Slashing . | . . . Piercing . | . . . Sneak Attacks . | . . . Combat Hostiles . | . . . Follow-up Attacks . | . . . Damage Inflicted 1903 | 154 1048 701 Guns 596 | 154 442 . Cannons 1294 | . 593 701 Explosions . | . . . Melee . | . . . Ramming 13 | . 13 . Kinetic 1890 | 154 1035 701 Thermal . | . . . Explosive . | . . . Electromagnetic . | . . . Impact . | . . . Slashing . | . . . Piercing . | . . . Highest Corruption 2 | . 2 2 Average Corruption 2 | . 2 2 Corruption Purged . | . . . Corruption Blocked . | . . . Effects 20 | . 13 7 Message Errors 5 | . 4 1 Matter Fused 4 | . 3 1 Heat Flow Errors 3 | . 2 1 Energy Discharges 2 | . 2 . Parts Rejected 1 | . . 1 Data Loss (minor) 1 | . 1 . Misfires 1 | . 1 . Alerts 1 | . . 1 Weapon Failures 2 | . . 2 Overload Shots . | . . . Overflow Damage 7 | . 7 . Projectiles 7 | . 7 . Explosions . | . . . Melee . | . . . Knockbacks 18 | . 11 7 Impact . | . . . Kinetic 17 | . 10 7 Secondary 1 | . 1 . Self-Inflicted Damage . | . . . Shots . | . . . Rammed 2 | . 2 . Targets Rammed 3 | . 3 . Kicked . | . . . Crushed 1 | . 1 . Highest Temperature 209 | . 209 142 Average Temperature 39 | . 37 82 Received Heat Transfer 399 | . 231 168 Siege Activations . | . . . Martial Activations . | . . . Shielding Activations . | . . . Robots Disrupted . | . . . Combat Hostiles . | . . . Robots Corrupted . | . . . Combat Hostiles . | . . . Parts Fried . | . . . Impact Corruptions . | . . . Robots Melted . | . . . Combat Hostiles . | . . . Parts Melted . | . . . Heat Transferred . | . . . Parts Sabotaged . | . . . Parts Stolen . | . . . Parts Stripped . | . . . Power Chain Reactions . | . . . Alert | -11 -10 -10 ------- Run | Yrd Mat Sub Maximum Alert Level . | . . . Low Security (%) 100 | 100 100 . Level 1 . | . . . Level 2 . | . . . Level 3 . | . . . Level 4 . | . . . Level 5 . | . . . High Security . | . . . Max Security . | . . . Peak Influence 126 | 10 126 . Initial . | . . . Average 46 | 1 51 . Influence Increases 574 | 30 494 50 Destroy 0b10 Robot/C 360 | . 320 40 Destroy 0b10 Robot/NC 55 | 30 25 . Destroy Leader 64 | . 54 10 Successful Hack 28 | . 28 . Destroy Structure 7 | . 7 . Partial Spotted 15 | . 15 . Lose Combat Pursuer 45 | . 45 . Influence Decreases 574 | 30 494 50 Time Decay 574 | 30 494 50 Squads Dispatched 2 | . 2 . Investigation 1 | . 1 . Extermination . | . . . Reinforcement 1 | . 1 . Assault . | . . . Garrison . | . . . Intercept . | . . . Searches Triggered . | . . . Construction Impeded . | . . . Haulers Reinforced . | . . . Active Scanning Responses . | . . . Cargo Convoy Interrupts . | . . . Stealth | -11 -10 -10 --------- Run | Yrd Mat Sub Distress Signals 2 | . 2 . Communications Jammed . | . . . Distress Signals . | . . . Times Spotted 41 | . 33 8 Peak Tracking Total 5 | . 5 5 Tactical Retreats 2 | . 2 . Traps | -11 -10 -10 ------- Run | Yrd Mat Sub Traps Triggered 2 | . 2 . Indirectly . | . . . Trap Hack Attempts . | . . . Triggered . | . . . Disarmed . | . . . Reprogrammed . | . . . Reused . | . . . Traps Extracted . | . . . Installed . | . . . Triggered . | . . . Machines | -11 -10 -10 ---------- Run | Yrd Mat Sub Machines Disabled . | . . . Max in Single Turn . | . . . Machines Repaired . | . . . Machines Dismantled . | . . . Machines Sabotaged . | . . . Overloaded Fab Kills . | . . . Hacking | -11 -10 -10 --------- Run | Yrd Mat Sub Machines Accessed 5 | . 5 . Terminals 5 | . 5 . Fabricators . | . . . Repair Stations . | . . . Recycling Units . | . . . Scanalyzers . | . . . Garrison Access . | . . . Total Hacks 17 | . 17 . Successful 9 | . 9 . Failed 7 | . 7 . Catastrophic . | . . . Database Lockouts 1 | . 1 . Manual 18 | . 18 . Terminals 17 | . 17 . Fabricators . | . . . Repair Stations . | . . . Recycling Units . | . . . Scanalyzers . | . . . Garrison Access . | . . . Terminal Hacks 1 | . 1 . Robot Analysis 1 | . 1 . Fabricator Hacks . | . . . Repair Station Hacks . | . . . Recycling Unit Hacks . | . . . Scanalyzer . | . . . Garrison Access Hacks . | . . . Unauthorized Hacks 8 | . 8 . Terminals 8 | . 8 . Botnet 3 | . 3 . Skim 5 | . 5 . Fabricators . | . . . Repair Stations . | . . . Recycling Units . | . . . Scanalyzers . | . . . Garrison Access . | . . . Data Cores Recovered 1 | . 1 . Used . | . . . Hacking Detections 5 | . 5 . Full Trace Events 1 | . 1 . Feedback Events . | . . . Feedback Blocked . | . . . Robot Schematics Acquired . | . . . Robots Built . | . . . Authchips . | . . . Time . | . . . Total Robot Build Rating . | . . . Part Schematics Acquired . | . . . Parts Built . | . . . Authchips . | . . . Time . | . . . Total Part Build Rating . | . . . Part Studies Acquired . | . . . Parts Repaired . | . . . Time . | . . . Parts Recycled . | . . . Recycled Matter . | . . . Retrieved Matter . | . . . Retrieved Components . | . . . Parts Scanalyzed . | . . . Part Schematics Acquired . | . . . Parts Damaged . | . . . Bothacking | -11 -10 -10 ------------ Run | Yrd Mat Sub Used RIF Installer . | . . . Robots Hacked . | . . . Non-combat . | . . . Combat . | . . . Robot Hacks Applied . | . . . Relay Couplers Released . | . . . Fabnet Peak Effective % . | . . . Robots Rewired . | . . . Allies Hacked . | . . . Hacks Repelled . | . . . Allies | -11 -10 -10 -------- Run | Yrd Mat Sub Total Allies . | . . . Largest Group . | . . . Highest-Rated Group . | . . . Highest-Rated Ally . | . . . Total Orders . | . . . Ally Attacks . | . . . Total Damage . | . . . Kills . | . . . Allies Corrupted . | . . . Allies Melted . | . . . Intel | -11 -10 -10 ------- Run | Yrd Mat Sub Active Infowar (turns) 1914 | 24 1525 365 Seismic 1914 | 24 1525 365 Robot Analysis Total 1 | . 1 . Derelict Logs Recovered . | . . . Drone Launches . | . . . Drone Recoveries . | . . . Exploration | -11 -10 -10 ------------- Run | Yrd Mat Sub Turns Passed 2079 | 189 1525 365 Spaces Moved 923 | 82 742 99 Core 4 | 4 . . Treads 902 | 78 742 82 Legs 17 | . . 17 Wheels . | . . . Hover . | . . . Flight . | . . . Fastest Speed 50 | 50 160 160 Average Speed 165 | 156 160 216 Slowest Speed 260 | 160 160 260 Overloaded Moves . | . . . Propulsion Burnouts . | . . . Robots Hopped . | . . . Potential Cave-ins . | . . . Cave-ins Triggered . | . . . Exploration Rate (%) 35 | 5 91 11 Regions Visited 2 Branch Regions 1 Pre-discovered Areas . | . . . Known Exits Taken . | . . . Unknown Exits Taken 2 | 1 1 . Scrap Searched . | . . . Spaces Dug 2 | . 2 . Terrain Destroyed 2 | . 2 . Melee . | . . . Projectile 2 | . 2 . AOE . | . . . Terrain Rammed . | . . . Walls Destroyed . | . . . Machines Disabled . | . . . Actions | -11 -10 -10 --------- Run | Yrd Mat Sub Total 1281 | 113 977 191 Wait 181 | . 132 49 Move 921 | 81 741 99 Hop . | . . . Pick Up 27 | 8 16 3 Fast Attach 8 | 6 2 . Attach 7 | 1 . 6 Detach . | . . . Swap 14 | . 11 3 Drop 18 | . 17 1 Fire 102 | 17 55 30 Melee . | . . . Ram . | . . . Kick . | . . . Crush 3 | . 3 . Escape Stasis . | . . . Rewire . | . . . Trap . | . . . Miscellaneous . | . . . Route ------- -11/Scrapyard -10/Materials (discovered 5 exits: [*Mat x3] / [*Min] / [*Sub]) -10/Subcaves History --------- Turn | Location | Event 10 | -11/Scrapyard | Discovered new exit (range 16) 190 | -11/Scrapyard | Entered Materials 285 | -10/Materials | Discovered new exit (range 6) 305 | -10/Materials | Build established: Mutant 602 | -10/Materials | Discovered new exit (range 4) 798 | -10/Materials | Central database locked down 839 | -10/Materials | Discovered new exit (range 4) 979 | -10/Materials | Discovered new exit (range 16) 1218 | -10/Materials | Discovered new exit (range 16) 1327 | -10/Materials | Build established: Scavenger-Mutant 1715 | -10/Materials | Entered Subcaves 1716 | -10/Subcaves | Approached by a straggling Scientist 1827 | -10/Subcaves | Core integrity fell below 50% 1880 | -10/Subcaves | Lost 3 parts (1p1n1w) 2071 | -10/Subcaves | Core integrity fell below 20% 2080 | -10/Subcaves | Destroyed by 9B-F18(R) with Subdweller Laser Last Messages --------------- 01974_ Subatomizers dissect the Sub. Machine Gun. 01984_ Acquired Mining Laser. 01985_ Acquired 34 matter. 01989_ Subatomizers dissect the Sub. Machine Gun. 01990_ Acquired 6 matter. 01992_ Acquired 33 matter. 01999_ Acquired Sub. Machine Gun. 02000_ System corrupted: Matter fused (-7). 02003_ Subatomizers dissect the Disposable Heat Sink. 02003_ Acquired Sub. Monowheel. 02013_ Subatomizers dissect the Disposable Heat Sink. BW-UJD(c): "I think it's somewhere northeast of here" 02058_ Lgt. Treads destroyed. 02069_ 9B-F18(R) knocked back. 02070_ Aluminum Leg destroyed. BW-UJD(c): "I think it's somewhere northeast of here" 02072_ Lgt. Cannon destroyed. 02074_ NJ-7BO(O) collects matter. 02074_ 67-AWP(R) destroyed. 02075_ System corrupted: Lgt. Cannon rejected. Map ----- +----------------------------------------------------+ | ??????????????????????????????## #???????????? | | ???????????????????????????????# #???????????? | | ??????????????????????????????## ##???????????? | | ????????????????#????????????## ##????????????? | | ???????????????## ?????????### #?????????????? | | ???????????????#" ????????## ##????????????? | | ???????????????# ?????### ##???????????? | | ????????????????" ????#" #???????????? | | ????????????????# ???#% #???????????? | | ????????????????# ??## ####???????????? | | ????????????????#" % ### ##?????????????? | | ?????????????????"" " # # #?????????????? | | ???????????????????"""" % #?????????????? | | ???????????????????#""""%! ##?????????????? | | ???????????????????##"" # ## #??????????????? | | ????????????????????###### ! ## ###????????????? | | ?????????????????????????#% #????????????? | | ??????????????????????#####% #????????????? | | ??????????????????????# ###%% ##????????????? | | ???????????????#####??# #### ###?????????????? | | ??????????????## ### ### #???????????????? | | ????????????? ##c #???????????????? | | ?????????????? ##???????????????? | | ????????????????????#"" ##????????????????? | | ????????????????????### ###?????????????????? | | ?????????????????????### @ ###???????????????????? | | ?????????????????#####"# ##?????????????????????? | | ?????????????????#"""" ]* ##?????????????????????? | | ?????????????????## %%R%! #?????????????????????? | | ??????????????????# %##%# #?????????????????????? | | ??????????????? #?#####?????????????????????? | | ??????????????# ????????????????????????????? | | ??????????????#" ?????????????????????????????? | | ?????????????# " ??????????????????????????????? | | ?????????????" " ???????????????????????????????? | | ?????????????" ???????????????????????????????? | | ?????????????"" ????????????????????????????????? | | ???????????? " ?????????????????????????????????? | | ????????????? "??????????????????????????????????? | | ????????????? ??????????????????????????????????? | | ?????????????????????????????????????????????????? | | ?????????????????????????????????????????????????? | | ?????????????????????????????????????????????????? | | ?????????????????????????????????????????????????? | | ?????????????????????????????????????????????????? | | ?????????????????????????????????????????????????? | | ?????????????????????????????????????????????????? | | ?????????????????????????????????????????????????? | | ?????????????????????????????????????????????????? | | ?????????????????????????????????????????????????? | +----------------------------------------------------+ Best States ------------- Heat Dissipation 25 Energy Generation 10 Energy Capacity 250 Matter Stores 300 Matter Capacity 300 Sight Range 16 Terrain Scan Density 10 Evasion (%) 40 Recoil Reduction 2 Item Schematics ----------------- None Robot Schematics ------------------ None Fabricated ------------ Nothing Repaired ---------- Nothing Studied --------- None Alien Tech Used ----------------- None Achievements -------------- None Challenges ------------ None Game ------ Seed AbsorptionVariableWall Manual? 0 Play Time 00:13:24 Cumulative 112.3 hours Start 2026.06.23 @ 19:48:47 End 2026.06.23 @ 20:00:41 Sessions 1 Manual Loads 0 Difficulty Rogue Special Mode None Game No. 141 Rogue 141 Adventurer 0 Explorer 0 Win Type - Total 0 Types 0/0/0/0/0/0/0/0/0/0 Lore% 52 Gallery% 44 Achievement% 35 Wizard Run 0 Options --------- Layout 0 ASCII 0 Keyboard 0 Movement Mouse Keybinds 1 Fullscreen 2 Font 24/X11 Map View 76x50 Zoom Use 44% Tactical HUD 1 Map Filters NONE Filters NONE Steam 1 RUN: b1c3e64f-4747-4be0-af61-94426411123c